bitfinex/quotes_SOLUSD_20250522
["timestamp","ask_amount","ask_price","bid_price","bid_amount"]
[1747872002807,0.72030309,173.62,173.54,15.243959]
[1747872005033,0.72030309,173.62,173.55,8.838259]
[1747872005219,0.72012517,173.7,173.57,1.5798]
[1747872005424,0.72012517,173.7,173.58,15.710559]
[1747872005620,0.72012517,173.7,173.59,45.98]
[1747872005944,0.72012517,173.7,173.6,0.14216157]
[1747872006438,0.72012517,173.7,173.59,55.513759]
[1747872006607,0.86213304,173.74,173.59,55.513759]
[1747872006933,67.57614398,173.73,173.59,55.513759]
[1747872007132,0.14216157,173.7,173.59,55.513759]
[1747872007433,0.72000302,173.7,173.6,9.67592057]
[1747872007733,0.72000302,173.7,173.6,9.533759]
[1747872007925,18.64964886,173.69,173.6,9.533759]
[1747872008110,0.14216157,173.66,173.57,1.5798]
[1747872008305,0.14216157,173.66,173.54,6.3022]
[1747872008306,38.80513402,173.65,173.54,6.3022]
[1747872008616,0.72021187,173.64,173.54,6.3022]
[1747872008823,0.72021187,173.64,173.54,12.06452096]
[1747872009117,0.72021187,173.64,173.54,6.3022]
[1747872010121,5.75937338,173.63,173.54,12.06447219]
[1747872011942,0.72021187,173.64,173.55,0.14216157]
[1747872012540,5.75837844,173.66,173.55,18.79181043]
[1747872012714,5.75837844,173.66,173.56,1.5702]
[1747872013336,5.75837844,173.66,173.56,10.21981456]
[1747872013548,5.75837844,173.66,173.58,0.14216157]
[1747872013840,5.75837844,173.66,173.59,45.64]
[1747872014037,5.75789163,173.68,173.59,45.64]
[1747872014238,6.47732756,173.69,173.6,6.4766]
[1747872015223,6.47732756,173.69,173.6,11.16243485]
[1747872015417,5.75743238,173.69,173.6,6.4766]
[1747872015652,19.36947433,173.68,173.6,6.4766]
[1747872016536,5.75743238,173.69,173.6,12.23688412]
[1747872016853,0.71982818,173.71,173.61,1.79976157]
[1747872017062,14.3908399,173.73,173.61,1.79976157]
[1747872017063,5.75633647,173.73,173.63,0.14216157]
[1747872017235,0.71964473,173.72,173.63,0.14216157]
[1747872017430,5.75672097,173.71,173.63,0.14216157]
[1747872017632,5.75637067,173.73,173.63,5.90152587]
[1747872018531,5.75569915,173.75,173.65,0.14216157]
[1747872018733,5.75569915,173.75,173.67,0.14216157]
[1747872019345,5.7550904,173.76,173.69,1.6167]
[1747872020333,5.75456719,173.78,173.7,0.14216157]
[1747872020597,0.71939141,173.82,173.7,18.79181043]
[1747872020738,0.71939141,173.82,173.7,0.14216157]
[1747872020939,5.75340889,173.81,173.7,0.14216157]
[1747872021138,0.7194026,173.8,173.7,0.14216157]
[1747872021543,0.71935116,173.82,173.7,18.79181043]
[1747872021750,9.06290235,173.8,173.7,18.79181043]
[1747872022137,9.06290235,173.8,173.7,107.5488219]
[1747872022560,5.75373641,173.81,173.7,107.5488219]
[1747872023647,0.71927876,173.8,173.7,0.14216157]
[1747872023946,0.14216157,173.8,173.66,45.6]
[1747872024148,18.79181043,173.78,173.65,1.603]
[1747872024367,18.64964886,173.76,173.65,1.603]
[1747872024685,0.71962737,173.78,173.66,18.79181043]
[1747872025850,5.75473326,173.77,173.66,18.79181043]
[1747872026655,6.47421499,173.77,173.66,18.79181043]
[1747872026983,5.75473326,173.77,173.66,0.14216157]
[1747872027162,0.71946741,173.76,173.66,0.14216157]
[1747872027348,18.64964886,173.75,173.65,47.203]
[1747872027551,18.64964886,173.73,173.65,47.203]
[1747872027851,20.14852339,173.71,173.64,6.253]
[1747872028047,0.71982034,173.7,173.64,6.253]
[1747872028249,5.75672097,173.71,173.64,6.253]
[1747872029656,6.47638902,173.71,173.64,6.253]
[1747872029856,5.75672097,173.71,173.64,6.253]
[1747872030057,5.75672097,173.71,173.65,0.14216157]
[1747872030469,5.75672097,173.71,173.65,45.74216157]
[1747872031857,20.14620387,173.73,173.64,6.253]
[1747872032054,20.14620387,173.73,173.61,1.5584]
[1747872032055,18.64964886,173.71,173.61,1.5584]
[1747872032254,0.71983445,173.7,173.61,1.5584]
[1747872032659,0.71983445,173.7,173.57,45.6]
[1747872032660,0.14216157,173.68,173.57,45.6]
[1747872032859,18.64964886,173.67,173.57,45.6]
[1747872033066,0.72010216,173.66,173.57,45.6]
[1747872033886,20.15664592,173.64,173.57,45.6]
[1747872034054,0.72012718,173.63,173.57,45.6]
[1747872034882,20.87676926,173.64,173.57,45.6]
[1747872035051,5.75904169,173.64,173.58,0.14216157]
[1747872035869,0.71992734,173.64,173.57,45.6]
[1747872036068,0.72000035,173.65,173.57,45.6]
[1747872036275,20.15432454,173.66,173.58,0.14216157]
[1747872036484,0.71994446,173.65,173.58,0.14216157]
[1747872036674,0.71994446,173.65,173.57,45.6]
[1747872037174,5.75837844,173.66,173.58,0.14216157]
[1747872037583,25.62405355,173.65,173.5,29.25770775]
[1747872037767,10.0,173.6,173.5,0.22286828]
[1747872037960,30.16361331,173.58,173.5,0.22286828]
[1747872038295,30.16361331,173.58,173.41,6.2026]
[1747872038296,0.14216157,173.55,173.43,45.62]
[1747872038458,18.64964886,173.54,173.43,97.94439234]
[1747872038787,0.72066634,173.53,173.45,10.0]
[1747872038956,0.72052313,173.57,173.47,0.14216157]
[1747872039158,5.76103237,173.58,173.49,18.79181043]
[1747872039352,5.76103237,173.58,173.51,0.14216157]
[1747872039574,5.76067599,173.6,173.51,18.79181043]
[1747872039964,14.40009216,173.61,173.5,45.62]
[1747872040167,18.64964886,173.59,173.48,1.5761]
[1747872040357,18.64964886,173.57,173.42,1.5668]
[1747872040559,0.72053319,173.56,173.42,1.5668]
[1747872040754,18.64964886,173.55,173.42,1.5668]
[1747872040967,18.64964886,173.53,173.42,1.5668]
[1747872041274,0.72064236,173.52,173.42,1.5668]
[1747872041985,5.76335657,173.51,173.42,1.5668]
[1747872042190,0.7206459,173.5,173.42,1.5668]
[1747872043871,5.76280274,173.53,173.43,0.14216157]
[1747872044071,0.72049673,173.52,173.43,0.14216157]
[1747872044389,0.72055601,173.52,173.43,0.14216157]
[1747872045277,5.76280274,173.53,173.43,0.14216157]
[1747872045875,5.76280274,173.53,173.45,0.14216157]
[1747872046390,6.48326119,173.53,173.45,0.14216157]
[1747872046583,44.64964886,173.57,173.45,44.79181043]
[1747872046584,5.76234898,173.55,173.45,44.79181043]
[1747872046973,5.76234898,173.55,173.45,50.55714566]
[1747872047468,0.72032411,173.6,173.49,26.0]
[1747872047666,0.72032411,173.6,173.5,0.14216157]
[1747872048071,5.7607005,173.59,173.5,0.14216157]
[1747872048287,0.72024511,173.58,173.42,1.5668]
[1747872048479,18.64964886,173.53,173.42,1.5668]
[1747872048675,0.72058291,173.52,173.43,0.14216157]
[1747872048886,26.72054432,173.57,173.45,0.14216157]
[1747872049777,26.0,173.53,173.42,1.5668]
[1747872049978,0.72067554,173.52,173.42,1.5668]
[1747872050188,20.17174801,173.51,173.42,1.5668]
[1747872050394,0.72066662,173.5,173.42,1.5668]
[1747872050623,0.72066662,173.5,173.42,27.5668]
[1747872050979,20.89241265,173.51,173.43,0.14216157]
[1747872051293,20.89241265,173.51,173.42,1.5668]
[1747872051294,46.89241265,173.51,173.42,1.5668]
[1747872051599,75.70919554,173.51,173.42,1.5668]
[1747872051976,26.0,173.48,173.41,6.2026]
[1747872052199,20.89717553,173.47,173.38,50.72096857]
[1747872052501,20.89717553,173.47,173.38,50.578807]
[1747872052705,5.76468553,173.47,173.39,18.79181043]
[1747872052908,5.76468553,173.47,173.39,44.79181043]
[1747872053400,5.76335657,173.51,173.43,18.79181043]
[1747872053601,5.76169624,173.56,173.48,8.1215]
[1747872053801,5.76169624,173.56,173.49,18.79181043]
[1747872054104,20.16272178,173.59,173.49,18.79181043]
[1747872054397,20.16272178,173.59,173.49,44.79181043]
[1747872055004,20.16272178,173.59,173.53,0.14216157]
[1747872055181,20.16272178,173.59,173.52,26.0]
[1747872055382,20.88295981,173.59,173.52,26.0]
[1747872055688,20.88295981,173.59,173.51,26.14216157]
[1747872055884,20.16272178,173.59,173.51,26.14216157]
[1747872056183,20.15896785,173.62,173.51,26.14216157]
[1747872056384,0.72017811,173.61,173.51,26.14216157]
[1747872056787,0.72017811,173.61,173.49,26.14216157]
[1747872056788,26.72017811,173.61,173.49,26.14216157]
[1747872056989,18.58282764,173.6,173.5,3.26681931]
[1747872057187,0.72035761,173.59,173.5,3.26681931]
[1747872057779,0.72035761,173.59,173.49,26.0]
[1747872058197,20.16477501,173.57,173.49,26.0]
[1747872058505,0.72039006,173.56,173.49,26.0]
[1747872059894,0.72039006,173.56,173.48,8.1215]
[1747872060395,0.72039006,173.56,173.47,26.0]
[1747872060396,20.16709881,173.55,173.47,26.0]
[1747872060626,20.16709881,173.55,173.44,108.01334886]
[1747872060627,0.72051993,173.54,173.44,6.3637]
[1747872060911,0.14216157,173.5,173.38,4.511707]
[1747872061082,18.64964886,173.47,173.35,6.626]
[1747872061406,18.64964886,173.43,173.33,1.6329]
[1747872061588,26.0,173.39,173.29,6.626]
[1747872061786,26.0,173.39,173.26,1.5497]
[1747872061787,0.72111902,173.38,173.26,1.5497]
[1747872062023,0.72111902,173.38,173.28,26.0]
[1747872062433,20.18803714,173.37,173.28,26.0]
[1747872062746,20.18803714,173.37,173.26,1.5497]
[1747872062747,0.72124326,173.36,173.26,1.5497]
[1747872063039,0.72124326,173.36,173.25,47.7]
[1747872063246,34.58,173.35,173.3,8.93111936]
[1747872063450,38.837686,173.37,173.3,8.93111936]
[1747872063451,20.90938112,173.37,173.3,8.93111936]
[1747872063835,18.64964886,173.36,173.25,47.7]
[1747872064038,18.64964886,173.34,173.21,215.68]
[1747872064239,18.64964886,173.34,173.23,26.0]
[1747872064240,35.30151103,173.33,173.23,26.0]
[1747872064430,20.19386106,173.32,173.23,26.0]
[1747872064631,0.72147542,173.31,173.21,215.68]
[1747872064850,0.72147542,173.31,173.23,26.0]
[1747872065676,5.77034045,173.3,173.21,234.32964886]
[1747872065873,5.77003428,173.31,173.25,0.14216157]
[1747872066096,5.76934171,173.33,173.25,18.79181043]
[1747872066290,5.76889531,173.35,173.28,26.0]
[1747872066457,5.76889531,173.35,173.29,26.14216157]
[1747872066653,5.76767793,173.38,173.29,26.14216157]
[1747872066856,6.50143676,173.45,173.29,26.14216157]
[1747872066857,5.76634759,173.42,173.33,26.0]
[1747872067084,5.76634759,173.42,173.34,0.14216157]
[1747872067254,5.76634759,173.42,173.33,26.0]
[1747872067671,5.7660151,173.43,173.34,18.79181043]
[1747872068375,5.7660151,173.43,173.37,26.0]
[1747872069161,0.72084567,173.42,173.34,26.0]
[1747872069760,20.18338042,173.41,173.32,1.6109]
[1747872069963,0.72112676,173.4,173.32,1.6109]
[1747872070159,0.72112676,173.4,173.27,48.96]
[1747872070373,18.64964886,173.39,173.3,26.0]
[1747872070679,0.72124045,173.38,173.28,0.14216157]
[1747872070992,0.72124045,173.38,173.28,26.14216157]
[1747872071480,0.72124385,173.37,173.28,26.14216157]
[1747872072057,20.18920165,173.36,173.28,26.14216157]
[1747872072363,0.72124571,173.35,173.28,26.14216157]
[1747872072877,26.72124571,173.35,173.18,0.10884763]
[1747872073077,40.36535024,173.45,173.25,26.0]
[1747872073280,40.36535024,173.45,173.22,28.64964886]
[1747872073281,0.72100781,173.44,173.34,18.79181043]
[1747872073471,5.76535024,173.45,173.38,26.0]
[1747872073672,5.76535024,173.45,173.39,0.14216157]
[1747872074184,20.17756254,173.46,173.38,26.0]
[1747872074486,6.48552709,173.48,173.43,0.14216157]
[1747872074695,5.76465983,173.48,173.43,0.14216157]
[1747872074988,5.76465983,173.48,173.42,26.0]
[1747872075462,5.76465983,173.48,173.41,49.10216157]
[1747872075964,20.17554292,173.48,173.41,49.10216157]
[1747872076169,5.76501787,173.46,173.41,48.96]
[1747872076376,0.72079326,173.45,173.41,48.96]
[1747872076586,0.72079326,173.45,173.38,26.14216157]
[1747872076789,20.17756254,173.46,173.39,26.0]
[1747872076978,5.76501787,173.46,173.4,0.14216157]
[1747872077794,20.17756254,173.46,173.39,26.0]
[1747872078374,0.72074971,173.48,173.39,26.0]
[1747872078375,5.76468553,173.47,173.4,0.14216157]
[1747872078575,0.72063484,173.6,173.45,0.14216157]
[1747872078810,0.72063484,173.6,173.44,26.0]
[1747872078811,20.16245175,173.59,173.5,26.14216157]
[1747872079109,5.7607005,173.59,173.5,26.14216157]
[1747872079301,5.7607005,173.59,173.54,26.0]
[1747872079669,5.7607005,173.59,173.52,0.14216157]
[1747872079986,0.11438148,173.53,173.52,26.14216157]
[1747872080187,0.11438148,173.53,173.52,26.0]
[1747872080390,5.76302443,173.52,173.49,26.0]
[1747872081604,5.76302443,173.52,173.46,48.94]
[1747872081796,0.72053558,173.51,173.46,48.94]
[1747872082098,0.72053558,173.51,173.45,26.0]
[1747872082302,0.72053558,173.51,173.43,7.7393]
[1747872082596,20.17291066,173.5,173.43,7.7393]
[1747872082795,0.72068379,173.49,173.43,7.7393]
[1747872082987,20.17291066,173.5,173.43,33.7393]
[1747872083187,20.17291066,173.5,173.43,7.7393]
[1747872083603,20.17291066,173.5,173.43,33.7393]
[1747872083804,20.17291066,173.5,173.35,5.76867441]
[1747872083805,53.95025407,173.49,173.34,0.14216157]
[1747872084178,53.95025407,173.49,173.36,26.0]
[1747872084400,5.76435323,173.48,173.41,0.14216157]
[1747872084578,5.76302443,173.52,173.45,18.79181043]
[1747872084778,0.11438148,173.53,173.49,0.07534034]
[1747872084997,5.87724213,173.53,173.49,0.07534034]
[1747872085501,5.87724213,173.53,173.45,48.94]
[1747872085703,20.28397295,173.53,173.46,26.0]
[1747872086589,5.87724213,173.53,173.48,26.0]
[1747872086906,0.72032335,173.52,173.48,26.0]
[1747872087102,0.72032335,173.52,173.47,3.26979709]
[1747872087103,0.72032335,173.52,173.45,74.94]
[1747872087297,0.72032335,173.52,173.45,48.94]
[1747872088084,0.72032335,173.52,173.44,26.0]
[1747872088280,18.64964886,173.51,173.41,8.1673]
[1747872088488,20.17407343,173.49,173.39,48.92]
[1747872088687,0.72075551,173.48,173.42,26.0]
[1747872088889,0.72075551,173.48,173.36,6.5087]
[1747872089096,18.64964886,173.47,173.35,1.5176]
[1747872089298,0.72098712,173.46,173.35,1.5176]
[1747872089502,18.64964886,173.45,173.35,1.5176]
[1747872089690,0.72098712,173.46,173.33,48.92]
[1747872089691,0.72096277,173.44,173.33,48.92]
[1747872089895,0.72096277,173.44,173.3,6.5087]
[1747872089896,26.0,173.43,173.3,6.5087]
[1747872090206,26.0,173.43,173.25,5.77173129]
[1747872090207,18.64964886,173.39,173.25,48.94]
[1747872090389,20.18803714,173.37,173.25,48.94]
[1747872090592,0.72120511,173.36,173.26,0.14216157]
[1747872090810,0.72120511,173.36,173.25,48.94]
[1747872091219,0.72120511,173.36,173.27,0.14216157]
[1747872091711,0.72120511,173.36,173.26,26.0]
[1747872091932,0.72120511,173.36,173.26,0.14216157]
[1747872092126,49.0280902,173.37,173.26,0.14216157]
[1747872092127,20.90925798,173.37,173.28,26.0]
[1747872092285,20.90925798,173.37,173.26,0.14216157]
[1747872092626,43.98130043,173.37,173.25,0.14216157]
[1747872092822,15.14124737,173.37,173.27,26.0]
[1747872092986,5.76767793,173.38,173.31,26.0]
[1747872093305,5.76767793,173.38,173.32,0.14216157]
[1747872094123,34.58,173.43,173.32,18.79181043]
[1747872094284,5.76634759,173.42,173.32,18.79181043]
[1747872094490,5.7660151,173.43,173.32,18.79181043]
[1747872094793,14.41586898,173.42,173.32,18.79181043]
[1747872095193,5.7660151,173.43,173.36,0.14216157]
[1747872095425,5.7660151,173.43,173.39,26.0]
[1747872095817,5.7660151,173.43,173.35,1.6065]
[1747872096015,0.7209088,173.42,173.35,1.6065]
[1747872096461,5.76701268,173.4,173.35,1.6065]
[1747872096958,20.18454439,173.4,173.35,1.6065]
[1747872097121,20.90553072,173.4,173.33,74.94]
[1747872097524,20.18454439,173.4,173.33,74.94]
[1747872098345,5.76701268,173.4,173.33,74.94]
[1747872098749,20.18338042,173.41,173.33,74.94]
[1747872099123,5.76668012,173.41,173.34,0.14216157]
[1747872099642,0.72095711,173.4,173.33,74.94]
[1747872100018,0.11168879,173.34,173.33,74.94]
[1747872100436,0.11168879,173.34,173.17,10.59910073]
[1747872100757,0.11168879,173.34,173.29,18.79181043]
[1747872101048,0.11168879,173.34,173.29,93.81181043]
[1747872101249,0.11168879,173.34,173.29,93.96227895]
[1747872101422,0.11168879,173.34,173.33,44.79181043]
[1747872101623,0.10973384,173.35,173.34,18.79181043]
[1747872102039,0.10973384,173.35,173.33,26.15002087]
[1747872102242,0.10973384,173.35,173.34,0.14216157]
[1747872102460,0.10973384,173.35,173.34,26.14216157]
[1747872103382,0.10973384,173.35,173.34,26.0]
[1747872103842,0.10973384,173.35,173.34,26.14216157]
[1747872104142,0.10973384,173.35,173.31,18.64964886]
[1747872104143,0.10973384,173.35,173.23,18.79181043]
[1747872104341,0.10973384,173.35,173.31,0.14216157]
[1747872104977,5.87844909,173.35,173.3,75.02]
[1747872105347,0.10973384,173.35,173.31,0.14216157]
[1747872105782,5.87861817,173.35,173.3,81.582]
[1747872105958,20.30030839,173.35,173.3,55.582]
[1747872106162,5.87861817,173.35,173.3,55.582]
[1747872106376,5.87861817,173.35,173.3,81.582]
[1747872107488,0.10973384,173.35,173.3,81.582]
[1747872107666,5.87854782,173.35,173.3,81.582]
[1747872107863,5.87854782,173.35,173.3,49.02]
[1747872108276,20.30023804,173.35,173.3,49.02]
[1747872109183,5.87854782,173.35,173.3,49.02]
[1747872109789,20.30023804,173.35,173.3,49.02]
[1747872110191,21.02141459,173.35,173.3,49.02]
[1747872110373,20.30023804,173.35,173.3,49.02]
[1747872113606,5.87854782,173.35,173.3,49.02]
[1747872113781,20.30023804,173.35,173.3,49.02]
[1747872115002,5.87854782,173.35,173.31,0.14216157]
[1747872117979,20.30023804,173.35,173.29,26.0]
[1747872119510,21.02137744,173.35,173.29,26.0]
[1747872119711,20.30023804,173.35,173.29,26.0]
[1747872120009,0.10714122,173.3,173.29,26.0]
[1747872120409,5.87748167,173.3,173.29,26.0]
[1747872120715,0.10714122,173.3,173.29,26.0]
[1747872121433,0.10714122,173.3,173.29,29.27603592]
[1747872121741,5.87748167,173.3,173.29,29.27603592]
[1747872121913,5.87748167,173.3,173.29,26.0]
[1747872122335,0.11696541,173.31,173.3,18.79181043]
[1747872122644,0.11681592,173.39,173.35,44.79181043]
[1747872122846,0.11681592,173.39,173.38,44.79181043]
[1747872123058,0.11681592,173.39,173.38,79.39181043]
[1747872123367,5.76335657,173.51,173.46,26.0]
[1747872123662,20.16711352,173.55,173.47,0.14216157]
[1747872124051,0.72040929,173.54,173.46,75.02]
[1747872124248,5.76269232,173.53,173.47,3.2656327]
[1747872125367,14.40508529,173.55,173.48,3.26581873]
[1747872125665,5.76136429,173.57,173.48,3.26581873]
[1747872125666,6.48178773,173.57,173.48,3.26581873]
[1747872125855,5.76107257,173.58,173.52,26.0]
[1747872126252,5.76003686,173.61,173.53,0.14216157]
[1747872126636,5.76003686,173.61,173.51,1.6298]
[1747872126637,90.83313856,173.54,173.51,1.6298]
[1747872126857,91.55339301,173.54,173.45,50.5423]
[1747872127453,5.76269232,173.53,173.45,50.5423]
[1747872127859,5.76269232,173.53,173.45,76.5423]
[1747872128039,0.72048566,173.52,173.45,50.5423]
[1747872128360,0.72048566,173.52,173.45,76.5423]
[1747872128565,0.72048566,173.52,173.45,50.5423]
[1747872128767,0.72048566,173.52,173.45,76.5423]
[1747872129143,20.16942314,173.53,173.45,76.5423]
[1747872129545,14.40673082,173.53,173.45,76.5423]
[1747872129750,15.12721565,173.53,173.45,76.5423]
[1747872129975,15.12721565,173.53,173.45,75.02]
[1747872130145,15.12721565,173.53,173.46,3.26758465]
[1747872130475,6.48288594,173.54,173.46,3.26758465]
[1747872130857,5.76236026,173.54,173.46,3.26758465]
[1747872131068,5.76236026,173.54,173.46,0.14216157]
[1747872131277,0.72042866,173.53,173.45,75.02]
[1747872131649,20.17058551,173.52,173.45,75.02]
[1747872132375,5.76302443,173.52,173.46,0.14216157]
[1747872132544,5.76257597,173.54,173.48,26.0]
[1747872133066,5.76257597,173.54,173.49,0.14216157]
[1747872133574,14.40481484,173.56,173.49,0.14216157]
[1747872133575,5.76169624,173.56,173.49,26.14216157]
[1747872134073,5.76169624,173.56,173.49,26.0]
[1747872134369,5.76169624,173.56,173.5,0.14216157]
[1747872135244,5.76169624,173.56,173.49,26.0]
[1747872135546,20.88625907,173.56,173.48,26.0]
[1747872135748,20.88625907,173.56,173.51,3.26812317]
[1747872135944,18.64964886,173.55,173.51,3.26812317]
[1747872136179,18.64964886,173.53,173.43,270.7321]
[1747872136469,18.64964886,173.51,173.43,264.48]
[1747872136676,0.72069752,173.5,173.43,48.64]
[1747872137565,0.72064606,173.51,173.44,3.27202758]
[1747872137761,20.17291066,173.5,173.44,3.27202758]
[1747872137963,0.72064178,173.49,173.44,3.27202758]
[1747872138162,20.89355242,173.5,173.44,3.27202758]
[1747872138577,20.17291066,173.5,173.44,3.27202758]
[1747872138981,20.17291066,173.5,173.43,48.64]
[1747872139282,0.72055569,173.49,173.43,48.64]
[1747872139486,20.17291066,173.5,173.43,48.64]
[1747872139985,5.76302443,173.52,173.46,26.0]
[1747872140278,5.76302443,173.52,173.47,0.14216157]
[1747872140863,5.76302443,173.52,173.46,26.0]
[1747872141586,20.17058551,173.52,173.48,29.26759693]
[1747872141968,67.62406691,173.56,173.48,29.26759693]
[1747872142166,0.7204354,173.55,173.48,26.0]
[1747872142375,0.7204354,173.55,173.47,0.14216157]
[1747872143476,20.16593684,173.56,173.48,26.0]
[1747872143802,20.16593684,173.56,173.49,0.14216157]
[1747872143961,5.76169624,173.56,173.51,0.14216157]
[1747872144412,5.76169624,173.56,173.51,27.80346157]
[1747872144605,0.72020729,173.55,173.5,48.64]
[1747872145610,20.16593684,173.56,173.5,48.64]
[1747872146206,14.4042406,173.56,173.5,48.64]
[1747872147104,5.76103237,173.58,173.53,26.0]
[1747872147404,14.39953777,173.62,173.54,0.14216157]
[1747872147604,5.75937338,173.63,173.56,0.14216157]
[1747872147901,5.75937338,173.63,173.56,1.67516157]
[1747872148103,5.75937338,173.63,173.57,48.64]
[1747872148329,5.75804687,173.67,173.59,0.14216157]
[1747872148493,5.75804687,173.67,173.58,26.0]
[1747872148808,5.75804687,173.67,173.6,26.0]
[1747872149683,5.75804687,173.67,173.61,0.14216157]
[1747872150511,20.14852339,173.71,173.61,0.14216157]
[1747872150882,5.75672097,173.71,173.64,26.0]
[1747872151119,5.75672097,173.71,173.65,6.17066157]
[1747872151407,5.75539568,173.75,173.68,26.0]
[1747872152197,20.14388488,173.75,173.68,26.0]
[1747872152388,14.3884892,173.75,173.68,26.0]
[1747872155493,0.71960532,173.74,173.68,26.0]
[1747872156495,20.14388488,173.75,173.68,26.0]
[1747872156806,5.75539568,173.75,173.68,26.0]
[1747872157015,20.14388488,173.75,173.68,26.0]
[1747872157817,0.71961148,173.74,173.66,1.6437]
[1747872158609,5.75605825,173.73,173.66,1.6437]
[1747872158809,20.14620387,173.73,173.65,32.0285]
[1747872159110,20.86586542,173.73,173.65,32.0285]
[1747872160107,20.14620387,173.73,173.65,32.0285]
[1747872160822,14.39014562,173.73,173.65,32.0285]
[1747872161120,5.75572694,173.74,173.65,32.0285]
[1747872161718,5.75572694,173.74,173.68,26.0]
[1747872162023,5.75572694,173.74,173.67,26.0]
[1747872162827,5.75539568,173.75,173.68,0.14216157]
[1747872163618,5.75539568,173.75,173.65,40.5685]
[1747872163619,20.14388488,173.75,173.65,40.5685]
[1747872163807,20.14388488,173.75,173.68,26.0]
[1747872164007,5.75539568,173.75,173.68,26.0]
[1747872164818,20.14077602,173.78,173.69,0.14216157]
[1747872165022,20.14077602,173.78,173.69,26.0]
[1747872165327,14.38141404,173.84,173.75,6.5475]
[1747872166203,5.75249056,173.84,173.78,26.0]
[1747872167012,20.13008442,173.87,173.79,26.0]
[1747872167897,5.75142347,173.87,173.81,26.0]
[1747872168091,5.75142347,173.87,173.81,73.06]
[1747872168823,20.12998216,173.87,173.81,73.06]
[1747872169120,14.37855869,173.87,173.81,73.06]
[1747872169315,5.7510927,173.88,173.81,73.06]
[1747872171009,20.12683255,173.9,173.81,73.06]
[1747872171205,0.71894314,173.89,173.81,73.06]
[1747872171411,20.12683255,173.9,173.81,73.06]
[1747872172330,5.75043128,173.9,173.81,73.06]
[1747872172538,5.75043128,173.9,173.82,0.14216157]
[1747872173109,18.64964886,173.91,173.81,73.06]
[1747872173313,0.71887483,173.9,173.81,73.06]
[1747872173524,20.12464805,173.92,173.82,0.14216157]
[1747872173927,20.12464805,173.92,173.84,26.0]
[1747872174331,5.74977,173.92,173.84,26.0]
[1747872174624,5.74977,173.92,173.86,26.0]
[1747872174826,24.83028846,173.99,173.87,1.5419]
[1747872175025,24.83028846,173.99,173.86,26.0]
[1747872175026,10.0,174.14,173.97,17.28]
[1747872175325,1.5631,174.11,173.98,1.19909428]
[1747872175530,82.13255827,174.1,173.98,1.19909428]
[1747872176508,10.0,174.06,173.98,1.19909428]
[1747872176812,10.0,174.03,173.87,26.0]
[1747872177015,26.14216157,173.99,173.87,26.0]
[1747872177226,26.14216157,173.99,173.84,34.5]
[1747872177227,0.14216157,173.96,173.84,34.5]
[1747872177429,0.71471984,173.96,173.87,26.0]
[1747872177628,0.57255827,173.96,173.88,26.0]
[1747872178633,0.71471984,173.96,173.86,26.0]
[1747872178829,0.71471984,173.96,173.87,26.0]
[1747872179127,0.57255827,174.02,173.89,0.14216157]
[1747872179315,6.3190781,174.02,173.89,0.14216157]
[1747872179517,6.3190781,174.02,173.93,26.0]
[1747872179717,0.57255827,174.02,173.94,18.64964886]
[1747872179928,46.67718059,174.09,174.01,26.0]
[1747872180140,0.57255827,174.08,174.01,26.0]
[1747872180434,26.0,174.1,173.96,25.5]
[1747872180610,0.14216157,174.05,173.93,34.5]
[1747872180810,0.71471984,174.05,173.93,34.5]
[1747872181008,0.57255827,174.05,173.94,18.79181043]
[1747872181233,0.71471984,174.09,173.94,18.79181043]
[1747872181535,0.14216157,174.07,173.92,1.5079]
[1747872181715,26.14216157,174.05,173.88,18.64964886]
[1747872181920,0.57255827,174.04,173.88,18.64964886]
[1747872182104,26.14216157,174.02,173.88,18.64964886]
[1747872182309,0.14216157,173.99,173.86,18.64964886]
[1747872182631,0.57255827,173.99,173.9,18.64964886]
[1747872182818,6.6517,174.07,173.93,26.0]
[1747872182819,0.57255827,174.02,173.93,26.0]
[1747872183420,5.74679616,174.01,173.93,26.0]
[1747872183617,0.57255827,174.0,173.93,26.0]
[1747872183823,6.31916559,174.02,173.93,26.0]
[1747872184007,0.57255827,174.02,173.94,18.64964886]
[1747872184217,47.02,174.03,173.94,18.64964886]
[1747872184420,0.57255827,174.04,173.97,26.0]